fUST/lending_fUST_20260419
["ID","MTS","AMOUNT","RATE_DAILY","PERIOD"]
[420814912,1776559840801,-300.0,0.00016438,2]
[420814913,1776559840811,-300.0,0.00016438,2]
[420814914,1776559840820,-300.0,0.00016438,2]
[420814915,1776559840830,-300.0,0.00016438,2]
[420814916,1776559840839,-300.0,0.00016438,2]
[420814917,1776559840849,-300.0,0.00016438,2]
[420814918,1776559840858,-300.0,0.00016438,2]
[420814919,1776559840868,-300.0,0.00016438,2]
[420814920,1776559840877,-300.0,0.00016438,2]
[420814921,1776559840887,-240.0,0.00016438,2]
[420814922,1776559840895,-345.465215,0.00016438,2]
[420814923,1776559840905,-345.465215,0.00016438,2]
[420814924,1776559840913,-345.465215,0.00016438,2]
[420814925,1776559840922,-345.465215,0.00016438,2]
[420814926,1776559840932,-345.465215,0.00016438,2]
[420814927,1776559840940,-345.465215,0.00016438,2]
[420814928,1776559840949,-345.465215,0.00016438,2]
[420814929,1776559840958,-345.465215,0.00016438,2]
[420814930,1776559840967,-345.465215,0.00016438,2]
[420814931,1776559840976,-345.465215,0.00016438,2]
[420814932,1776559840985,-345.465215,0.00016438,2]
[420814933,1776559840994,-345.465215,0.00016438,2]
[420814934,1776559841003,-345.465215,0.00016438,2]
[420814935,1776559841012,-345.465215,0.00016438,2]
[420814936,1776559841021,-345.465215,0.00016438,2]
[420814937,1776559841030,-345.465215,0.00016438,2]
[420814938,1776559841039,-345.465215,0.00016438,2]
[420814939,1776559841048,-345.465215,0.00016438,2]
[420814940,1776559841059,-345.465215,0.00016438,2]
[420814941,1776559841068,-345.465224,0.00016438,2]
[420814942,1776559841078,-151.713835,0.00016438,2]
[420814943,1776559841087,-151.713835,0.00016438,2]
[420814944,1776559841097,-151.713835,0.00016438,2]
[420814945,1776559841106,-151.713835,0.00016438,2]
[420814946,1776559841116,-151.713835,0.00016438,2]
[420814947,1776559841126,-151.713835,0.00016438,2]
[420814948,1776559841136,-151.713835,0.00016438,2]
[420814949,1776559841145,-151.713835,0.00016438,2]
[420814950,1776559841155,-151.713835,0.00016438,2]
[420814951,1776559841164,-151.713835,0.00016438,2]
[420814952,1776559841174,-151.713835,0.00016438,2]
[420814953,1776559841184,-151.713835,0.00016438,2]
[420814954,1776559841193,-151.713835,0.00016438,2]
[420814955,1776559841203,-151.713835,0.00016438,2]
[420814956,1776559841212,-151.713835,0.00016438,2]
[420814957,1776559841222,-151.713835,0.00016438,2]
[420814958,1776559841231,-151.713835,0.00016438,2]
[420814959,1776559841242,-151.713835,0.00016438,2]
[420814960,1776559841252,-151.713835,0.00016438,2]
[420814961,1776559841262,-151.713833,0.00016438,2]
[420814962,1776559841271,-461.34977,0.00016438,2]
[420814963,1776559841280,-461.34977,0.00016438,2]
[420814964,1776559841290,-461.34977,0.00016438,2]
[420814965,1776559841299,-461.34977,0.00016438,2]
[420814966,1776559841309,-461.34977,0.00016438,2]
[420814967,1776559841318,-461.34977,0.00016438,2]
[420814968,1776559841327,-461.34977,0.00016438,2]
[420814969,1776559841337,-461.34977,0.00016438,2]
[420814970,1776559841346,-461.34977,0.00016438,2]
[420814971,1776559841355,-461.34977,0.00016438,2]
[420814972,1776559841365,-461.34977,0.00016438,2]
[420814973,1776559841374,-461.34977,0.00016438,2]
[420814974,1776559841383,-461.34977,0.00016438,2]
[420814975,1776559841393,-461.34977,0.00016438,2]
[420814976,1776559841402,-461.34977,0.00016438,2]
[420814977,1776559841412,-461.34977,0.00016438,2]
[420814978,1776559841421,-461.34977,0.00016438,2]
[420814979,1776559841431,-461.34977,0.00016438,2]
[420814980,1776559841440,-461.34977,0.00016438,2]
[420814981,1776559841449,-461.34976081,0.00016438,2]
[420814982,1776559841459,-352.761829,0.00016438,2]
[420814983,1776559841468,-352.761829,0.00016438,2]
[420814984,1776559841478,-352.761829,0.00016438,2]
[420814985,1776559841487,-352.761829,0.00016438,2]
[420814986,1776559841496,-352.761829,0.00016438,2]
[420814987,1776559841506,-352.761829,0.00016438,2]
[420814988,1776559841515,-352.761829,0.00016438,2]
[420814989,1776559841525,-352.761829,0.00016438,2]
[420814990,1776559841534,-352.761829,0.00016438,2]
[420814991,1776559841547,-352.761829,0.00016438,2]
[420814992,1776559841556,-352.761829,0.00016438,2]
[420814993,1776559841565,-352.761829,0.00016438,2]
[420814994,1776559841575,-352.761829,0.00016438,2]
[420814995,1776559841585,-352.761829,0.00016438,2]
[420814996,1776559841594,-352.761829,0.00016438,2]
[420814997,1776559841603,-352.761829,0.00016438,2]
[420814998,1776559841612,-352.761829,0.00016438,2]
[420814999,1776559841622,-352.761829,0.00016438,2]
[420815000,1776559841631,-352.761829,0.00016438,2]
[420815001,1776559841641,-352.761834,0.00016438,2]
[420815002,1776559841650,-151.0,0.00016438,2]
[420815003,1776559841659,-151.0,0.00016438,2]
[420815004,1776559841669,-151.0,0.00016438,2]
[420815005,1776559841679,-151.0,0.00016438,2]
[420815006,1776559841688,-151.0,0.00016438,2]
[420815007,1776559841697,-151.0,0.00016438,2]
[420815008,1776559841707,-151.0,0.00016438,2]
[420815009,1776559841716,-151.0,0.00016438,2]
[420815010,1776559841725,-181.404111,0.00016438,2]
[420815011,1776559841735,-200.0,0.00016438,3]
[420815012,1776559841744,-200.0,0.00016438,3]
[420815013,1776559841754,-200.0,0.00016438,3]
[420815014,1776559841763,-200.0,0.00016438,3]
[420815015,1776559841773,-200.0,0.00016438,3]
[420815016,1776559841782,-200.0,0.00016438,3]
[420815017,1776559841791,-352.665828,0.00016438,2]
[420815018,1776559841800,-352.665828,0.00016438,2]
[420815019,1776559841810,-352.665828,0.00016438,2]
[420815020,1776559841819,-352.665828,0.00016438,2]
[420815021,1776559841829,-352.665828,0.00016438,2]
[420815022,1776559841838,-352.665828,0.00016438,2]
[420815023,1776559841847,-352.665828,0.00016438,2]
[420815024,1776559841857,-352.665828,0.00016438,2]
[420815025,1776559841867,-352.665828,0.00016438,2]
[420815026,1776559841876,-352.665828,0.00016438,2]
[420815027,1776559841885,-352.665828,0.00016438,2]
[420815028,1776559841894,-352.665828,0.00016438,2]
[420815029,1776559841904,-352.665828,0.00016438,2]
[420815030,1776559841913,-352.665828,0.00016438,2]
[420815031,1776559841922,-352.665828,0.00016438,2]
[420815032,1776559841932,-352.665828,0.00016438,2]
[420815033,1776559841942,-352.665828,0.00016438,2]
[420815034,1776559841951,-352.665828,0.00016438,2]
[420815035,1776559841961,-352.665828,0.00016438,2]
[420815036,1776559841971,-352.665819,0.00016438,2]
[420815037,1776559841980,-167.324761,0.00016438,2]
[420815038,1776559841989,-167.324761,0.00016438,2]
[420815039,1776559841999,-167.324761,0.00016438,2]
[420815040,1776559842008,-167.324761,0.00016438,2]
[420815041,1776559842017,-167.324761,0.00016438,2]
[420815042,1776559842027,-167.324761,0.00016438,2]
[420815043,1776559842037,-167.324761,0.00016438,2]
[420815044,1776559842046,-167.324761,0.00016438,2]
[420815045,1776559842056,-167.324761,0.00016438,2]
[420815046,1776559842065,-167.324761,0.00016438,2]
[420815047,1776559842074,-167.324761,0.00016438,2]
[420815048,1776559842084,-167.324761,0.00016438,2]
[420815049,1776559842093,-167.324761,0.00016438,2]
[420815050,1776559842103,-167.324761,0.00016438,2]
[420815051,1776559842112,-167.324761,0.00016438,2]
[420815052,1776559842122,-167.324761,0.00016438,2]
[420815053,1776559842131,-167.324761,0.00016438,2]
[420815054,1776559842141,-167.324761,0.00016438,2]
[420815055,1776559842150,-167.324761,0.00016438,2]
[420815056,1776559842160,-167.324764,0.00016438,2]
[420815057,1776559842170,-3000.0,0.0001644,2]
[420815058,1776559842180,-150.0,0.00016447,2]
[420815059,1776559842189,-3000.0,0.0001645,2]
[420815060,1776559842199,-3000.0,0.0001646,2]
[420815061,1776559842208,-3000.0,0.0001647,2]
[420815062,1776559842218,-3000.0,0.0001648,2]
[420815063,1776559842227,-3000.0,0.0001649,2]
[420815064,1776559842237,-155.0,0.00016495,2]
[420815065,1776559842246,-3000.0,0.000165,2]
[420815066,1776559842256,-3000.0,0.0001651,2]
[420815067,1776559842266,-3000.0,0.0001652,2]
[420815068,1776559842276,-3000.0,0.0001653,2]
[420815069,1776559842286,-3000.0,0.0001654,2]
[420815070,1776559842296,-3000.0,0.0001655,2]
[420815071,1776559842306,-3000.0,0.0001656,2]
[420815072,1776559842316,-5101.464581,0.0001657,2]
[420815073,1776559842326,-184.0,0.00016574,2]
[420815074,1776559842335,-10139.92759594,0.000166,2]
[420815075,1776559842345,-432.083774,0.00016603,2]
[420815076,1776559842354,-1000.0,0.00016621,2]
[420815077,1776559842364,-273.72661581,0.00016643,14]
[420815078,1776559842374,-155.0,0.00016694,2]
[420815080,1776559842383,-10139.92759594,0.000167,2]
[420815081,1776559842393,-1633.3920775,0.00016834,2]
[420815082,1776559842403,-155.0,0.00016893,2]
[420815083,1776559842412,-200.0,0.00016894,120]
[420815084,1776559842422,-10139.92759594,0.000169,2]
[420815085,1776559842432,-500.0,0.00016973,2]
[420815086,1776559842442,-500.0,0.00016973,2]
[420815087,1776559842452,-500.0,0.00016973,2]
[420815088,1776559842462,-508.39874412,0.00016973,2]
[420815089,1776559842471,-500.0,0.00016973,2]
[420815090,1776559842481,-500.0,0.00016973,2]
[420815092,1776559842491,-150.0,0.00016973,2]
[420815093,1776559842501,-500.0,0.00016973,2]
[420815094,1776559842511,-500.0,0.00016973,2]
[420815095,1776559842520,-500.0,0.00016973,2]
[420815096,1776559842530,-430.53596689,0.00016973,2]
[420815097,1776559842539,-150.0,0.00016973,2]
[420815098,1776559842548,-500.0,0.00016973,2]
[420815099,1776559842558,-500.0,0.00016973,2]
[420815100,1776559842568,-500.0,0.00016973,2]
[420815101,1776559842578,-464.22145935,0.00016973,2]
[420815102,1776559842588,-500.0,0.00016973,2]
[420815104,1776559842597,-500.0,0.00016973,2]
[420815105,1776559842607,-500.0,0.00016973,2]
[420815106,1776559842616,-500.0,0.00016973,2]
[420815108,1776559842626,-500.0,0.00016973,2]
[420815110,1776559842635,-500.0,0.00016973,2]
[420815112,1776559842644,-500.0,0.00016973,2]
[420815115,1776559842654,-158.29763494,0.00016973,2]
[420815116,1776559842663,-500.0,0.00016973,2]
[420815117,1776559842672,-500.0,0.00016973,2]
[420815118,1776559842682,-500.0,0.00016973,2]
[420815119,1776559842691,-500.0,0.00016973,2]
[420815120,1776559842701,-500.0,0.00016973,2]
[420815121,1776559842711,-500.0,0.00016973,2]
[420815122,1776559842720,-500.0,0.00016973,2]
[420815123,1776559842729,-500.0,0.00016973,2]
[420815124,1776559842739,-500.0,0.00016973,2]
[420815125,1776559842748,-311.526198,0.00016973,2]
[420815126,1776559842758,-499.88502253,0.00016973,2]
[420815127,1776559842767,-500.0,0.00016973,2]
[420815128,1776559842776,-168.32862196,0.00016973,2]
[420815129,1776559842786,-500.0,0.00016973,2]
[420815130,1776559842795,-500.0,0.00016973,2]
[420815131,1776559842804,-500.0,0.00016973,2]
[420815132,1776559842813,-500.0,0.00016973,2]
[420815133,1776559842822,-500.0,0.00016973,2]
[420815134,1776559842831,-178.57128636,0.00016973,2]
[420815135,1776559842840,-500.0,0.00016973,2]
[420815137,1776559842849,-500.0,0.00016973,2]
[420815138,1776559842858,-500.0,0.00016973,2]
[420815140,1776559842867,-165.80879085,0.00016973,2]
[420815142,1776559842876,-500.0,0.00016973,2]
[420815144,1776559842885,-525.57062886,0.00016973,2]
[420815145,1776559842894,-500.0,0.00016973,2]
[420815146,1776559842903,-530.44671119,0.00016973,2]
[420815147,1776559842912,-500.0,0.00016973,2]
[420815148,1776559842921,-500.0,0.00016973,2]
[420815149,1776559842931,-161.4390296,0.00016973,2]
[420815150,1776559842940,-500.0,0.00016973,2]
[420815151,1776559842949,-500.0,0.00016973,2]
[420815152,1776559842958,-500.0,0.00016973,2]
[420815153,1776559842967,-246.19623245,0.00016973,2]
[420815154,1776559842976,-500.0,0.00016973,2]
[420815155,1776559842985,-500.0,0.00016973,2]
[420815156,1776559842994,-500.0,0.00016973,2]
[420815157,1776559843003,-500.0,0.00016973,2]
[420815158,1776559843012,-500.0,0.00016973,2]
[420815159,1776559843021,-500.0,0.00016973,2]
[420815160,1776559843030,-160.47332987,0.00016973,2]
[420815161,1776559843039,-500.0,0.00016973,2]
[420815162,1776559843048,-1500.0,0.00016973,2]
[420815163,1776559843057,-1500.0,0.00016973,2]
[420815164,1776559843067,-1500.0,0.00016973,2]
[420815165,1776559843076,-1500.0,0.00016973,2]
[420815166,1776559843085,-1500.0,0.00016973,2]
[420815167,1776559843095,-1500.0,0.00016973,2]
[420815168,1776559843105,-1500.0,0.00016973,2]
[420815169,1776559843114,-1500.0,0.00016973,2]
[420815170,1776559843123,-1500.0,0.00016973,2]
[420815171,1776559843133,-1500.0,0.00016973,2]
[420815172,1776559843143,-1500.0,0.00016973,2]
[420815173,1776559843152,-1500.0,0.00016973,2]
[420815174,1776559843161,-1500.0,0.00016973,2]
[420815175,1776559843171,-1500.0,0.00016973,2]
[420815176,1776559843181,-1500.0,0.00016973,2]
[420815177,1776559843190,-1500.0,0.00016973,2]
[420815178,1776559843199,-1500.0,0.00016973,2]
[420815179,1776559843209,-1500.0,0.00016973,2]
[420815180,1776559843218,-1500.0,0.00016973,2]
[420815181,1776559843228,-1500.0,0.00016973,2]
[420815182,1776559843238,-1500.0,0.00016973,2]
[420815183,1776559843247,-1500.0,0.00016973,2]
[420815184,1776559843257,-1500.0,0.00016973,2]
[420815185,1776559843266,-1500.0,0.00016973,2]
[420815186,1776559843276,-1500.0,0.00016973,2]
[420815187,1776559843285,-1500.0,0.00016973,2]
[420815188,1776559843295,-1500.0,0.00016973,2]
[420815189,1776559843304,-1500.0,0.00016973,2]
[420815190,1776559843313,-1500.0,0.00016973,2]
[420815191,1776559843323,-1500.0,0.00016973,2]
[420815192,1776559843332,-1500.0,0.00016973,2]
[420815193,1776559843343,-1500.0,0.00016973,2]
[420815194,1776559843353,-1500.0,0.00016973,2]
[420815195,1776559843362,-1500.0,0.00016973,2]
[420815196,1776559843371,-1500.0,0.00016973,2]
[420815197,1776559843381,-1500.0,0.00016973,2]
[420815198,1776559843391,-1500.0,0.00016973,2]
[420815199,1776559843400,-1500.0,0.00016973,2]
[420815200,1776559843410,-1500.0,0.00016973,2]
[420815201,1776559843420,-1500.0,0.00016973,2]
[420815202,1776559843430,-1500.0,0.00016973,2]
[420815203,1776559843440,-1500.0,0.00016973,2]
[420815204,1776559843450,-1500.0,0.00016973,2]
[420815205,1776559843460,-1500.0,0.00016973,2]
[420815206,1776559843470,-1500.0,0.00016973,2]
[420815207,1776559843480,-1500.0,0.00016973,2]
[420815208,1776559843490,-1500.0,0.00016973,2]
[420815209,1776559843499,-1500.0,0.00016973,2]
[420815210,1776559843509,-1500.0,0.00016973,2]
[420815211,1776559843658,-1500.0,0.00016973,2]
[420815212,1776559843690,-1500.0,0.00016973,2]
[420815213,1776559843700,-1500.0,0.00016973,2]
[420815214,1776559843710,-1500.0,0.00016973,2]
[420815215,1776559843719,-1500.0,0.00016973,2]
[420815216,1776559843729,-1500.0,0.00016973,2]
[420815217,1776559843738,-1500.0,0.00016973,2]
[420815218,1776559843748,-1500.0,0.00016973,2]
[420815219,1776559843757,-1500.0,0.00016973,2]
[420815220,1776559843767,-1500.0,0.00016973,2]
[420815221,1776559843776,-1500.0,0.00016973,2]
[420815222,1776559843786,-1500.0,0.00016973,2]
[420815223,1776559843795,-1500.0,0.00016973,2]
[420815224,1776559843805,-1500.0,0.00016973,2]
[420815225,1776559843814,-1500.0,0.00016973,2]
[420815226,1776559843824,-1500.0,0.00016973,2]
[420815227,1776559843833,-1500.0,0.00016973,2]
[420815228,1776559843843,-1500.0,0.00016973,2]
[420815229,1776559843852,-1500.0,0.00016973,2]
[420815230,1776559843863,-1500.0,0.00016973,2]
[420815231,1776559843872,-1500.0,0.00016973,2]
[420815232,1776559843882,-1500.0,0.00016973,2]
[420815233,1776559843891,-1500.0,0.00016973,2]
[420815234,1776559843901,-1500.0,0.00016973,2]
[420815235,1776559843911,-1500.0,0.00016973,2]
[420815236,1776559843919,-1500.0,0.00016973,2]
[420815237,1776559843929,-1500.0,0.00016973,2]
[420815238,1776559843939,-1500.0,0.00016973,2]
[420815239,1776559843949,-1500.0,0.00016973,2]
[420815240,1776559843958,-1500.0,0.00016973,2]
[420815241,1776559843967,-1500.0,0.00016973,2]
[420815242,1776559843977,-1500.0,0.00016973,2]
[420815243,1776559843986,-1500.0,0.00016973,2]
[420815244,1776559843996,-1500.0,0.00016973,2]
[420815245,1776559844006,-1500.0,0.00016973,2]
[420815246,1776559844015,-1500.0,0.00016973,2]
[420815247,1776559844025,-1500.0,0.00016973,2]
[420815248,1776559844035,-1500.0,0.00016973,2]
[420815249,1776559844044,-1500.0,0.00016973,2]
[420815250,1776559844054,-1500.0,0.00016973,2]
[420815251,1776559844063,-1500.0,0.00016973,2]
[420815252,1776559844073,-1500.0,0.00016973,2]
[420815253,1776559844083,-1500.0,0.00016973,2]
[420815254,1776559844092,-1500.0,0.00016973,2]
[420815255,1776559844102,-1500.0,0.00016973,2]
[420815256,1776559844111,-1500.0,0.00016973,2]
[420815257,1776559844121,-1500.0,0.00016973,2]
[420815258,1776559844130,-1500.0,0.00016973,2]
[420815259,1776559844140,-1500.0,0.00016973,2]
[420815260,1776559844150,-1500.0,0.00016973,2]
[420815261,1776559844159,-1500.0,0.00016973,2]
[420815262,1776559844168,-3093.17524948,0.00017,7]
[420815263,1776559844178,-259173.82330711,0.00017,2]
[420815264,1776559844196,-3746.24925059,0.00017,2]
[420815265,1776559844211,-322.65030477,0.00017,2]
[420815266,1776559844226,-28999.94273968,0.00017,2]
[420815267,1776559844237,-3191.72976468,0.00017,2]
[420815268,1776559846215,-5173.0,0.00017,2]
[420815288,1776560462633,-2097.48,7.6e-05,2]
[420815445,1776561038646,-511.0,7.599e-05,2]
[420815446,1776561038656,-868.25546468,7.599e-05,2]
[420815447,1776561038667,-148.74453532,7.599e-05,2]
[420815448,1776561038677,-300.0,7.599e-05,2]
[420815449,1776561038686,-150.0,7.599e-05,2]
[420815450,1776561038696,-7844.98571394,7.6e-05,2]
[420815451,1776561038705,-177.0,9.599e-05,2]
[420815452,1776561038715,-160.0,0.00010745,2]
[420815453,1776561038724,-204.0,0.00011599,2]
[420815454,1776561038734,-186.554,0.00012393,2]
[420815455,1776561038743,-243.896,0.00012393,2]
[420815456,1776561038753,-15731.90198597,0.00012498,2]
[420815457,1776561038767,-34268.09801403,0.00012498,2]
[420815458,1776561038777,-698.48599211,0.000125,2]
[420815459,1776561038786,-359.84334386,0.000125,2]
[420815460,1776561038795,-454.07039771,0.00012545,2]
[420815461,1776561038805,-277.67161207,0.00012545,2]
[420815462,1776561038814,-500.0,0.00012545,2]
[420815463,1776561038824,-403533.42309592,0.00012546,2]
[420815464,1776561038833,-500.70567814,0.00012573,2]
[420815465,1776561038842,-500.0,0.00012573,2]
[420815466,1776561038852,-500.0,0.00012573,2]
[420815467,1776561038861,-500.0,0.00012573,2]
[420815468,1776561038870,-500.0,0.00012573,2]
[420815469,1776561038880,-500.0,0.00012573,2]
[420815470,1776561038890,-500.0,0.00012573,2]
[420815471,1776561038899,-500.0,0.00012573,2]
[420815472,1776561038908,-500.0,0.00012573,2]
[420815473,1776561038918,-1365781.2111145,0.00012573,2]
[420815775,1776562239706,-10000.0,0.0001181,2]
[420815777,1776562239716,-522.0,0.0001181,2]
[420815779,1776562239726,-150.0,0.00011858,2]
[420815781,1776562239735,-1541.9044297,0.00011907,2]
[420815783,1776562239745,-5000.0,0.00011944,2]
[420815785,1776562239754,-3637.1955703,0.00011944,2]
[420815787,1776562239767,-1362.8044297,0.00011944,2]
[420815789,1776562239777,-5000.0,0.00011944,2]
[420815791,1776562239786,-5000.0,0.00011944,2]
[420815793,1776562239795,-5000.0,0.00011944,2]
[420815795,1776562239805,-300.0,0.00012045,2]
[420815797,1776562239814,-8265.3515245,0.00012295,2]
[420815799,1776562239824,-500.0,0.00012398,2]
[420815801,1776562239834,-500.0,0.00012398,3]
[420815803,1776562239843,-500.0,0.00012398,4]
[420815805,1776562239853,-504.94386124,0.00012398,5]
[420815807,1776562239862,-890.108273,0.00012746,2]
[420815809,1776562239871,-1737.55822189,0.00012846,2]
[420815811,1776562239881,-3017.45161611,0.00013046,2]
[420815813,1776562239890,-3432.45811968,0.00013146,2]
[420815815,1776562239899,-907.209108,0.000132,2]
[420815817,1776562239908,-4279.90806857,0.00013446,2]
[420815818,1776562239917,-4679.60275029,0.00013546,2]
[420815821,1776562239927,-5127.35801746,0.00013646,2]
[420815822,1776562239936,-195.117,0.00013664,2]
[420815824,1776562239945,-1000.0,0.00013699,2]
[420815826,1776562239954,-1000.0,0.00013699,2]
[420815828,1776562239963,-1166.34968081,0.00013745,2]
[420815830,1776562239973,-600.0,0.00013816,2]
[420815832,1776562239982,-5787.70350651,0.00013846,2]
[420815834,1776562239991,-591.04655756,0.00013846,2]
[420815836,1776562240000,-177.0,0.00013858,2]
[420815838,1776562240009,-500.0,0.00013945,2]
[420815840,1776562240019,-219.29342653,0.00013945,2]
[420815842,1776562240029,-372.49022816,0.00013945,2]
[420815844,1776562240038,-584.43900492,0.00013945,2]
[420815846,1776562240047,-406.79197205,0.00013945,2]
[420815865,1776562240243,-63694.85429377,0.00013946,2]
[420815866,1776562240270,-1666.4134488,0.00013946,2]
[420815888,1776562241031,-1345.00550395,0.00013946,2]
[420816218,1776562244813,192.34748699,0.00023923,120]
[420816526,1776562247727,-798.23978973,0.00013946,2]
[420816528,1776562247739,-57961.73965244,0.00013946,2]
[420816531,1776562247750,-500.68,0.00013946,2]
[420816533,1776562247762,-300.0,0.00013946,2]
[420816549,1776562247907,-3711.70790314,0.00013946,2]
[420816551,1776562247919,-2265.967128,0.00013946,2]
[420816553,1776562247929,-1891.0220345,0.00013946,2]
[420816560,1776562248089,-9229.35898567,0.00013946,2]
[420816561,1776562248259,-13896.08965803,0.00013946,2]
[420816562,1776562248270,-27358.18795853,0.00013946,2]
[420816583,1776562302736,-2974.22030129,0.00011944,2]
[420816584,1776562341829,232.84,0.00023923,120]
[420816591,1776562573837,151.0,0.00023923,120]
[420816596,1776562953641,968.66314456,0.00023916,120]
[420816804,1776563446330,-154.7,0.0001,2]
[420816806,1776563446340,-150.0,0.00010243,2]
[420816808,1776563446349,-160.0,0.00011861,2]
[420816810,1776563446359,-6397.86341772,0.00011944,2]
[420816811,1776563446368,-177.0,0.00012243,2]
[420816813,1776563446378,-203.0000148,0.00013587,2]
[420816816,1776563446387,-680.406831,0.00013587,2]
[420816818,1776563446397,-179.4357794,0.00013671,2]
[420816819,1776563446405,-500.0,0.00013698,2]
[420816822,1776563446415,-500.0,0.00013698,2]
[420816824,1776563446424,-500.0,0.00013698,2]
[420816826,1776563446434,-500.0,0.00013698,2]
[420816827,1776563446443,-500.0,0.00013698,2]
[420816828,1776563446453,-172.8327305,0.00013698,2]
[420816829,1776563446462,-1000.0,0.00013699,2]
[420816830,1776563446473,-1000.0,0.000138,2]
[420816831,1776563446482,-151.0,0.00013819,2]
[420816832,1776563446492,-1062.0,0.00014,2]
[420816833,1776563446501,-6341.75388462,0.00014046,2]
[420816834,1776563446511,-6601.23915489,0.0001409,2]
[420816835,1776563446521,-1823.09047684,0.00014221,4]
[420816836,1776563446531,-600.0,0.00014224,2]
[420816837,1776563446540,-204.0,0.00014243,2]
[420816838,1776563446550,-646.537,0.00014266,2]
[420816839,1776563446559,-2209.0,0.00014266,2]
[420816840,1776563446568,-185.939,0.00014266,2]
[420816841,1776563446577,-500.0,0.00014266,2]
[420816842,1776563446587,-150.413,0.00014266,2]
[420816843,1776563446596,-150.524,0.00014266,2]
[420816844,1776563446605,-150.362,0.00014266,2]
[420816845,1776563446616,-267.480431,0.00014431,2]
[420816846,1776563446624,-243.42367095,0.00014647,2]
[420816847,1776563446635,-535.418,0.00014657,2]
[420816848,1776563446645,-325.2809594,0.00014709,2]
[420816850,1776563446654,-6883.93916722,0.0001474,2]
[420816852,1776563446663,-409.10730344,0.00014899,2]
[420816854,1776563446672,-284.75438044,0.00014899,2]
[420816855,1776563446682,-196.23954229,0.00014899,2]
[420816857,1776563446692,-500.0,0.00014899,2]
[420816859,1776563446702,-477.01273227,0.00014899,2]
[420816861,1776563446712,-500.0,0.00014899,2]
[420816863,1776563446722,-500.0,0.00014899,2]
[420816865,1776563446731,-500.0,0.00014899,2]
[420816867,1776563446741,-500.0,0.00014899,2]
[420816869,1776563446751,-500.0,0.00014899,2]
[420816871,1776563446761,-30772.39056799,0.000149,2]
[420816883,1776563446867,-17039.09472831,0.000149,2]
[420816885,1776563446878,-4528.12701115,0.000149,2]
[420816887,1776563446889,-927.1608562,0.000149,2]
[420816976,1776563465063,220.0,0.00023916,120]
[420817013,1776564062077,-1930.27818127,7.6e-05,2]
[420817015,1776564300205,309.6,0.0002405,120]
[420817016,1776564316267,1500.0,0.0002405,120]
[420817017,1776564327321,1500.0,0.0002405,120]
[420817018,1776564338497,1500.0,0.0002405,120]
[420817019,1776564349082,1500.0,0.0002405,120]
[420817020,1776564359202,1500.0,0.0002405,120]
[420817097,1776564638429,-4196.25369102,7.375e-05,2]
[420817098,1776564638439,-511.0,7.449e-05,2]
[420817099,1776564638448,-150.0,7.562e-05,2]
[420817100,1776564638458,-1724.17153931,7.6e-05,2]
[420817101,1776564638535,-1408.17959229,7.6e-05,2]
[420817103,1776564638546,-4817.69591529,7.6e-05,2]
[420817104,1776564638556,-177.0,9.562e-05,2]
[420817105,1776564638566,-160.0,0.0001091,2]
[420817106,1776564638576,-10000.0,0.00011,2]
[420817107,1776564638585,-204.0,0.00011562,2]
[420817108,1776564638595,-1092.9650509,0.00013,2]
[420817109,1776564638604,-3937.53911109,0.00013542,2]
[420817110,1776564638614,-231.0,0.00013562,2]